fUSD/lending_fUSD_20250724
["ID","MTS","AMOUNT","RATE_DAILY","PERIOD"]
[374479724,1753317046956,-265.43906,0.00021917,2]
[374479725,1753317047051,-335.604057,0.00021917,2]
[374479726,1753317047061,-265.43906,0.00021917,2]
[374479727,1753317047070,-931.082956,0.00021917,2]
[374479728,1753317047079,-151.0,0.00021917,2]
[374479729,1753317047089,-265.439063,0.00021917,2]
[374479730,1753317047098,-151.0,0.00021917,2]
[374479731,1753317047108,-931.082956,0.00021917,2]
[374479732,1753317047117,-335.604057,0.00021917,2]
[374479733,1753317047127,-151.0,0.00021917,2]
[374479734,1753317047139,-931.082956,0.00021917,2]
[374479735,1753317047149,-400.0,0.00021917,2]
[374479736,1753317047159,-931.082956,0.00021917,2]
[374479737,1753317047168,-151.0,0.00021917,2]
[374479738,1753317047178,-335.604057,0.00021917,2]
[374479739,1753317047188,-400.0,0.00021917,2]
[374479740,1753317047197,-272.903938,0.00021917,2]
[374479741,1753317047206,-931.082956,0.00021917,2]
[374479742,1753317047216,-400.0,0.00021917,2]
[374479743,1753317047226,-400.0,0.00021917,2]
[374479744,1753317047236,-335.604057,0.00021917,2]
[374479745,1753317047245,-931.082956,0.00021917,2]
[374479746,1753317047254,-335.604057,0.00021917,2]
[374479747,1753317047264,-931.082956,0.00021917,2]
[374479748,1753317047274,-335.604057,0.00021917,2]
[374479749,1753317047283,-931.082956,0.00021917,2]
[374479750,1753317047292,-400.0,0.00021917,2]
[374479751,1753317047302,-335.604057,0.00021917,2]
[374479752,1753317047311,-931.082962,0.00021917,2]
[374479753,1753317047320,-335.604057,0.00021917,2]
[374479754,1753317047330,-341.821001,0.00021917,2]
[374479755,1753317047339,-335.60406,0.00021917,2]
[374479756,1753317047348,-341.821001,0.00021917,2]
[374479757,1753317047357,-341.821001,0.00021917,2]
[374479758,1753317047367,-400.0,0.00021917,2]
[374479759,1753317047376,-341.821001,0.00021917,2]
[374479760,1753317047388,-341.821001,0.00021917,2]
[374479761,1753317047397,-341.821001,0.00021917,2]
[374479762,1753317047407,-341.821001,0.00021917,2]
[374479763,1753317047417,-341.821001,0.00021917,2]
[374479764,1753317047429,-341.821001,0.00021917,2]
[374479765,1753317047439,-341.821001,0.00021917,2]
[374479766,1753317047448,-341.821001,0.00021917,2]
[374479767,1753317047458,-400.0,0.00021917,2]
[374479768,1753317047469,-341.821001,0.00021917,2]
[374479769,1753317047478,-341.821001,0.00021917,2]
[374479770,1753317047487,-341.821001,0.00021917,2]
[374479771,1753317047498,-400.0,0.00021917,2]
[374479772,1753317047507,-341.821001,0.00021917,2]
[374479773,1753317047517,-400.0,0.00021917,2]
[374479774,1753317047527,-341.821001,0.00021917,2]
[374479775,1753317047536,-341.821001,0.00021917,2]
[374479776,1753317047546,-341.821001,0.00021917,2]
[374479777,1753317047556,-341.821001,0.00021917,2]
[374479778,1753317047566,-480.69,0.00021917,2]
[374479779,1753317047575,-841.24,0.00021917,2]
[374479780,1753317047585,-3395.73,0.00021917,2]
[374479782,1753317047594,-577.44,0.00021917,2]
[374479784,1753317047603,-577.44,0.00021917,2]
[374479785,1753317047612,-577.44,0.00021917,2]
[374479787,1753317047622,-577.44,0.00021917,2]
[374479788,1753317047634,-577.44,0.00021917,2]
[374479789,1753317047643,-577.44,0.00021917,2]
[374479790,1753317047653,-543.79372413,0.00021917,2]
[374479791,1753317047663,-421.930166,0.00021917,2]
[374479792,1753317047672,-421.930166,0.00021917,2]
[374479793,1753317047682,-151.0,0.00021917,2]
[374479794,1753317047691,-400.0,0.00021917,2]
[374479795,1753317047701,-151.0,0.00021917,2]
[374479796,1753317047711,-421.930166,0.00021917,2]
[374479797,1753317047724,-151.0,0.00021917,2]
[374479798,1753317047734,-151.0,0.00021917,2]
[374479799,1753317047743,-151.0,0.00021917,2]
[374479800,1753317047752,-421.930166,0.00021917,2]
[374479801,1753317047762,-151.0,0.00021917,2]
[374479802,1753317047771,-152.225856,0.00021917,2]
[374479803,1753317047781,-421.930166,0.00021917,2]
[374479804,1753317047791,-151.0,0.00021917,2]
[374479805,1753317047800,-421.930166,0.00021917,2]
[374479806,1753317047810,-421.930166,0.00021917,2]
[374479807,1753317047820,-421.930166,0.00021917,2]
[374479808,1753317047830,-400.0,0.00021917,2]
[374479809,1753317047839,-400.0,0.00021917,2]
[374479810,1753317047849,-421.930166,0.00021917,2]
[374479811,1753317047864,-421.930166,0.00021917,2]
[374479812,1753317047874,-151.0,0.00021917,2]
[374479813,1753317047885,-421.930166,0.00021917,2]
[374479814,1753317047894,-400.0,0.00021917,2]
[374479815,1753317047904,-421.930166,0.00021917,2]
[374479816,1753317047914,-151.0,0.00021917,2]
[374479817,1753317047923,-421.930166,0.00021917,2]
[374479818,1753317047932,-151.0,0.00021917,2]
[374479819,1753317047942,-421.930166,0.00021917,2]
[374479820,1753317047951,-151.0,0.00021917,2]
[374479821,1753317047960,-421.930166,0.00021917,2]
[374479822,1753317047970,-151.0,0.00021917,2]
[374479823,1753317047979,-151.0,0.00021917,2]
[374479824,1753317047990,-250.711217,0.00021917,2]
[374479825,1753317047999,-151.0,0.00021917,2]
[374479826,1753317048008,-400.0,0.00021917,2]
[374479827,1753317048018,-151.0,0.00021917,2]
[374479828,1753317048027,-151.0,0.00021917,2]
[374479829,1753317048037,-421.930166,0.00021917,2]
[374479830,1753317048047,-421.930166,0.00021917,2]
[374479831,1753317048056,-151.0,0.00021917,2]
[374479832,1753317048066,-421.930166,0.00021917,2]
[374479833,1753317048075,-151.0,0.00021917,2]
[374479834,1753317048084,-400.0,0.00021917,2]
[374479835,1753317048094,-421.930166,0.00021917,2]
[374479836,1753317048104,-400.0,0.00021917,2]
[374479837,1753317048114,-151.0,0.00021917,2]
[374479838,1753317048124,-421.930169,0.00021917,2]
[374479839,1753317048135,-151.0,0.00021917,2]
[374479840,1753317048145,-203.218943,0.00021917,2]
[374479841,1753317048155,-505.23,0.00021917,2]
[374479842,1753317048165,-1046.67,0.00021917,2]
[374479843,1753317048175,-400.0,0.00021917,2]
[374479844,1753317048185,-400.0,0.00021917,2]
[374479845,1753317048194,-495.31958822,0.00021917,2]
[374479846,1753317048204,-529.97,0.00021917,2]
[374479847,1753317048214,-400.0,0.00021917,2]
[374479848,1753317048223,-400.0,0.00021917,2]
[374479849,1753317048233,-400.0,0.00021917,2]
[374479850,1753317048242,-665.89,0.00021917,2]
[374479851,1753317048252,-400.0,0.00021917,2]
[374479852,1753317048262,-400.0,0.00021917,2]
[374479853,1753317048272,-532.66,0.00021917,2]
[374479854,1753317048282,-400.0,0.00021917,2]
[374479855,1753317048291,-400.0,0.00021917,2]
[374479856,1753317048301,-526.23,0.00021917,2]
[374479857,1753317048311,-400.0,0.00021917,2]
[374479858,1753317048320,-400.0,0.00021917,2]
[374479859,1753317048330,-645.57,0.00021917,2]
[374479860,1753317048340,-2818.92,0.00021917,2]
[374479861,1753317048349,-151.0,0.00021917,2]
[374479862,1753317048359,-400.0,0.00021917,2]
[374479863,1753317048369,-151.0,0.00021917,2]
[374479864,1753317048380,-151.0,0.00021917,2]
[374479865,1753317048389,-400.0,0.00021917,2]
[374479866,1753317048399,-151.0,0.00021917,2]
[374479867,1753317048408,-151.0,0.00021917,2]
[374479868,1753317048419,-151.0,0.00021917,2]
[374479869,1753317048429,-400.0,0.00021917,2]
[374479870,1753317048439,-400.0,0.00021917,2]
[374479871,1753317048448,-151.512997,0.00021917,2]
[374479872,1753317048458,-400.0,0.00021917,2]
[374479873,1753317048467,-400.0,0.00021917,2]
[374479874,1753317048477,-777.34,0.00021917,2]
[374479875,1753317048486,-286.16574439,0.00021917,2]
[374479876,1753317048499,-461.78540731,0.00021917,2]
[374479877,1753317048508,-400.0,0.00021917,2]
[374479878,1753317048519,-400.0,0.00021917,2]
[374479879,1753317048530,-730.69,0.00021917,2]
[374479880,1753317048539,-400.0,0.00021917,2]
[374479881,1753317048549,-400.0,0.00021917,2]
[374479882,1753317048559,-594.3,0.00021917,2]
[374479883,1753317048569,-615.09,0.00021917,2]
[374479884,1753317048578,-400.0,0.00021917,2]
[374479885,1753317048588,-480.0,0.00021917,2]
[374479886,1753317048597,-400.0,0.00021917,2]
[374479887,1753317048607,-400.0,0.00021917,2]
[374479888,1753317048617,-400.0,0.00021917,2]
[374479889,1753317048627,-460.0,0.00021917,2]
[374479890,1753317048637,-651.18,0.00021917,2]
[374479891,1753317048647,-398.54685662,0.00021917,2]
[374479892,1753317048658,-400.0,0.00021917,2]
[374479893,1753317048672,-400.0,0.00021917,2]
[374479894,1753317048682,-480.0,0.00021917,2]
[374479895,1753317048692,-400.0,0.00021917,2]
[374479896,1753317048702,-758.36,0.00021917,2]
[374479897,1753317048711,-400.0,0.00021917,2]
[374479898,1753317048721,-400.0,0.00021917,2]
[374479899,1753317048730,-400.0,0.00021917,2]
[374479900,1753317048740,-400.0,0.00021917,2]
[374479901,1753317048749,-400.0,0.00021917,2]
[374479902,1753317048759,-400.0,0.00021917,2]
[374479903,1753317048769,-465.20679884,0.00021917,2]
[374479904,1753317048778,-460.0,0.00021917,2]
[374479905,1753317048789,-750.51,0.00021917,2]
[374479906,1753317048798,-400.0,0.00021917,2]
[374479907,1753317048806,-400.0,0.00021917,2]
[374479908,1753317048821,-544.62,0.00021917,2]
[374479909,1753317048834,-3628.18,0.00021917,2]
[374479910,1753317048844,-400.0,0.00021917,2]
[374479911,1753317048853,-400.0,0.00021917,2]
[374479912,1753317048862,-522.81,0.00021917,2]
[374479913,1753317048872,-400.0,0.00021917,2]
[374479914,1753317048882,-167.39816495,0.00021917,2]
[374479915,1753317048892,-400.0,0.00021917,2]
[374479916,1753317048901,-497.89,0.00021917,2]
[374479917,1753317048910,-400.0,0.00021917,2]
[374479918,1753317048919,-513.78,0.00021917,2]
[374479919,1753317048928,-400.0,0.00021917,2]
[374479920,1753317048938,-400.0,0.00021917,2]
[374479921,1753317048947,-400.0,0.00021917,2]
[374479922,1753317048957,-400.0,0.00021917,2]
[374479923,1753317048966,-400.0,0.00021917,2]
[374479924,1753317048976,-460.0,0.00021917,2]
[374479925,1753317048985,-400.0,0.00021917,2]
[374479926,1753317048995,-400.0,0.00021917,2]
[374479927,1753317049005,-480.0,0.00021917,2]
[374479928,1753317049015,-480.0,0.00021917,2]
[374479929,1753317049024,-400.0,0.00021917,2]
[374479930,1753317049034,-476.8,0.00021917,2]
[374479931,1753317049043,-400.0,0.00021917,2]
[374479932,1753317049052,-882.21,0.00021917,2]
[374479933,1753317049062,-526.08,0.00021917,2]
[374479934,1753317049072,-400.0,0.00021917,2]
[374479935,1753317049081,-401.34150207,0.00021917,2]
[374479936,1753317049091,-400.0,0.00021917,2]
[374479937,1753317049100,-558.73,0.00021917,2]
[374479938,1753317049110,-400.0,0.00021917,2]
[374479939,1753317049120,-717.46,0.00021917,2]
[374479940,1753317049130,-683.42,0.00021917,2]
[374479941,1753317049139,-852.69,0.00021917,2]
[374479942,1753317049148,-484.26,0.00021917,2]
[374479943,1753317049158,-400.0,0.00021917,2]
[374479944,1753317049168,-400.0,0.00021917,2]
[374479945,1753317049179,-2857.27,0.00021917,2]
[374479946,1753317049188,-400.0,0.00021917,2]
[374479947,1753317049198,-567.94,0.00021917,2]
[374479948,1753317049207,-400.0,0.00021917,2]
[374479949,1753317049216,-400.0,0.00021917,2]
[374479950,1753317049226,-400.0,0.00021917,2]
[374479951,1753317049235,-1000.0,0.00021917,2]
[374479952,1753317049245,-760.51,0.00021917,2]
[374479953,1753317049255,-400.42,0.00021917,2]
[374479954,1753317049264,-401.42,0.00021917,2]
[374479955,1753317049273,-151.0,0.00021917,2]
[374479956,1753317049282,-400.0,0.00021917,2]
[374479957,1753317049291,-151.0,0.00021917,2]
[374479958,1753317049301,-480.0,0.00021917,2]
[374479959,1753317049310,-151.0,0.00021917,2]
[374479960,1753317049319,-151.0,0.00021917,2]
[374479961,1753317049329,-400.0,0.00021917,2]
[374479962,1753317049338,-969.74,0.00021917,2]
[374479963,1753317049347,-151.0,0.00021917,2]
[374479964,1753317049357,-400.0,0.00021917,2]
[374479965,1753317049366,-480.0,0.00021917,2]
[374479966,1753317049375,-151.0,0.00021917,2]
[374479967,1753317049387,-400.0,0.00021917,2]
[374479968,1753317049396,-400.0,0.00021917,2]
[374479969,1753317049406,-774.57,0.00021917,2]
[374479970,1753317049427,-400.0,0.00021917,2]
[374479971,1753317049445,-151.0,0.00021917,2]
[374479972,1753317049455,-400.0,0.00021917,2]
[374479973,1753317049466,-156.614466,0.00021917,2]
[374479974,1753317049476,-612.37,0.00021917,2]
[374479975,1753317049485,-480.0,0.00021917,2]
[374479976,1753317049494,-271.56744963,0.00021917,2]
[374479977,1753317050097,-128.43255037,0.00021917,2]
[374479978,1753317050107,-370.26664793,0.00021917,2]
[374479979,1753317050153,-334.10335207,0.00021917,2]
[374479980,1753317050163,-264.99150604,0.00021917,2]
[374479981,1753317051901,-592.02866745,0.000199,2]
[374479982,1753317051932,-712.63264453,0.000199,2]
[374479983,1753317051944,-646.01212988,0.00020003,2]
[374479984,1753317053005,-658.6491821,0.00020003,2]
[374479985,1753317053015,-1304.66131198,0.00020107,2]
[374479986,1753317053025,-1304.66131198,0.0002021,2]
[374479987,1753317053035,-1304.66131198,0.00020314,3]
[374479988,1753317053045,-1304.66131198,0.00020417,3]
[374479989,1753317053054,-1304.66131198,0.00020521,3]
[374479990,1753317053064,-1304.66131198,0.00020624,3]
[374479991,1753317053074,-1304.66131198,0.00020728,3]
[374479992,1753317053083,-1304.66131198,0.00020831,4]
[374479993,1753317053092,-1304.66131198,0.00020934,4]
[374479994,1753317053102,-1304.66131198,0.00021038,4]
[374479995,1753317053112,-1304.66131198,0.00021141,4]
[374479996,1753317053122,-1304.66131198,0.00021245,4]
[374479997,1753317053131,-1304.66131198,0.00021348,5]
[374479998,1753317053143,-1304.66131198,0.00021452,5]
[374479999,1753317053153,-1304.66131198,0.00021555,5]
[374480000,1753317053163,-1304.66131198,0.00021659,5]
[374480001,1753317053172,-1304.66131198,0.00021762,5]
[374480002,1753317053181,-152397.91415336,0.00021809,2]
[374480003,1753317053191,-1304.66131198,0.00021866,6]
[374480004,1753317053201,-4550.10810524,0.0002189,2]
[374480005,1753317053211,-135.00849396,0.00021917,2]
[374480006,1753317053220,-400.0,0.00021917,2]
[374480007,1753317053230,-400.0,0.00021917,2]
[374480008,1753317053240,-440.0,0.00021917,2]
[374480009,1753317053250,-400.0,0.00021917,2]
[374480010,1753317053261,-400.0,0.00021917,2]
[374480011,1753317053271,-1557.13,0.00021917,2]
[374480012,1753317053281,-400.0,0.00021917,2]
[374480013,1753317053291,-400.0,0.00021917,2]
[374480014,1753317053301,-690.36,0.00021917,2]
[374480015,1753317053311,-532.283282,0.00021917,2]
[374480016,1753317053322,-532.283282,0.00021917,2]
[374480017,1753317053332,-532.283282,0.00021917,2]
[374480018,1753317053341,-400.0,0.00021917,2]
[374480019,1753317053351,-532.283282,0.00021917,2]
[374480020,1753317053360,-532.283282,0.00021917,2]
[374480021,1753317053369,-532.283282,0.00021917,2]
[374480022,1753317053379,-400.0,0.00021917,2]
[374480023,1753317053390,-532.283282,0.00021917,2]
[374480024,1753317053400,-1327.98,0.00021917,2]
[374480025,1753317053410,-400.0,0.00021917,2]
[374480026,1753317053423,-532.283282,0.00021917,2]
[374480027,1753317053433,-791.13,0.00021917,2]
[374480028,1753317053443,-532.283282,0.00021917,2]
[374480029,1753317053452,-400.0,0.00021917,2]
[374480030,1753317053462,-532.283282,0.00021917,2]
[374480031,1753317053472,-725.75,0.00021917,2]
[374480032,1753317053482,-532.283282,0.00021917,2]
[374480033,1753317053491,-532.283282,0.00021917,2]
[374480034,1753317053502,-400.0,0.00021917,2]
[374480035,1753317053511,-400.0,0.00021917,2]
[374480036,1753317053520,-400.0,0.00021917,2]
[374480037,1753317053530,-532.283282,0.00021917,2]
[374480038,1753317053539,-400.0,0.00021917,2]
[374480039,1753317053549,-904.25,0.00021917,2]
[374480040,1753317053558,-614.02,0.00021917,2]
[374480041,1753317053568,-532.283282,0.00021917,2]
[374480042,1753317053577,-532.283282,0.00021917,2]
[374480043,1753317053587,-445.09,0.00021917,2]
[374480044,1753317053596,-532.283282,0.00021917,2]
[374480045,1753317053606,-400.0,0.00021917,2]
[374480046,1753317053615,-532.283282,0.00021917,2]
[374480047,1753317053624,-532.283282,0.00021917,2]
[374480048,1753317053634,-400.0,0.00021917,2]
[374480049,1753317053645,-400.0,0.00021917,2]
[374480050,1753317053655,-532.283282,0.00021917,2]
[374480051,1753317053664,-564.41,0.00021917,2]
[374480052,1753317053674,-532.283283,0.00021917,2]
[374480053,1753317053684,-577.45,0.00021917,2]
[374480054,1753317053694,-439.79,0.00021917,2]
[374480055,1753317053703,-400.0,0.00021917,2]
[374480056,1753317053712,-1032.51,0.00021917,2]
[374480057,1753317053722,-477.88,0.00021917,2]
[374480058,1753317053732,-400.0,0.00021917,2]
[374480059,1753317053742,-501.43290415,0.00021917,2]
[374480060,1753317053752,-886.07,0.00021917,2]
[374480061,1753317053762,-500.0,0.00021917,2]
[374480062,1753317053771,-400.0,0.00021917,2]
[374480063,1753317053781,-400.0,0.00021917,2]
[374480064,1753317053790,-677.64,0.00021917,2]
[374480065,1753317053800,-400.0,0.00021917,2]
[374480066,1753317053809,-463.4,0.00021917,2]
[374480067,1753317053819,-400.0,0.00021917,2]
[374480068,1753317053829,-400.0,0.00021917,2]
[374480069,1753317053838,-400.0,0.00021917,2]
[374480070,1753317053848,-400.0,0.00021917,2]
[374480071,1753317053858,-773.23,0.00021917,2]
[374480072,1753317053867,-844.83,0.00021917,2]
[374480073,1753317053877,-1196.46,0.00021917,2]
[374480074,1753317053888,-500.0,0.00021917,2]
[374480075,1753317053897,-661.98,0.00021917,2]
[374480076,1753317053907,-500.0,0.00021917,2]
[374480077,1753317053916,-1184.45,0.00021917,2]
[374480078,1753317053926,-1412.64,0.00021917,2]
[374480079,1753317053935,-400.0,0.00021917,2]
[374480080,1753317053944,-420.0,0.00021917,2]
[374480081,1753317053954,-543.42,0.00021917,2]
[374480082,1753317053964,-400.0,0.00021917,2]
[374480083,1753317053973,-501.75,0.00021917,2]
[374480084,1753317053982,-400.0,0.00021917,2]
[374480085,1753317053992,-400.0,0.00021917,2]
[374480086,1753317054001,-550.72,0.00021917,2]
[374480087,1753317054011,-400.0,0.00021917,2]
[374480088,1753317054021,-420.0,0.00021917,2]
[374480089,1753317054030,-792.68,0.00021917,2]
[374480090,1753317054040,-400.0,0.00021917,2]
[374480091,1753317054049,-400.0,0.00021917,2]
[374480092,1753317054059,-460.0,0.00021917,2]
[374480093,1753317054069,-487.77,0.00021917,2]
[374480094,1753317054078,-400.0,0.00021917,2]
[374480095,1753317054088,-400.0,0.00021917,2]
[374480096,1753317054098,-400.0,0.00021917,2]
[374480097,1753317054107,-400.0,0.00021917,2]
[374480098,1753317054116,-439.21,0.00021917,2]
[374480099,1753317054126,-348.46725175,0.00021917,2]
[374480100,1753317054137,-460.65,0.00021917,2]
[374480101,1753317054147,-400.0,0.00021917,2]
[374480102,1753317054157,-400.0,0.00021917,2]
[374480103,1753317054166,-463.94,0.00021917,2]
[374480104,1753317054176,-1463.645589,0.00021917,2]
[374480105,1753317054186,-1259.42,0.00021917,2]
[374480106,1753317054197,-400.0,0.00021917,2]
[374480107,1753317054206,-400.0,0.00021917,2]
[374480108,1753317054216,-1463.645589,0.00021917,2]
[374480109,1753317054226,-480.0,0.00021917,2]
[374480110,1753317054237,-1463.645589,0.00021917,2]
[374480111,1753317054248,-1463.645589,0.00021917,2]
[374480112,1753317054258,-541.01,0.00021917,2]
[374480113,1753317054268,-1463.645589,0.00021917,2]
[374480114,1753317054278,-400.0,0.00021917,2]
[374480115,1753317054288,-402.31,0.00021917,2]
[374480116,1753317054297,-415.13,0.00021917,2]
[374480117,1753317054307,-761.03,0.00021917,2]
[374480118,1753317054317,-1463.645589,0.00021917,2]
[374480119,1753317054326,-400.0,0.00021917,2]
[374480120,1753317054336,-1463.645589,0.00021917,2]
[374480121,1753317054346,-400.0,0.00021917,2]
[374480122,1753317054355,-1463.645589,0.00021917,2]
[374480123,1753317054365,-400.0,0.00021917,2]
[374480124,1753317054375,-400.0,0.00021917,2]
[374480125,1753317054384,-1526.81,0.00021917,2]
[374480126,1753317054395,-1463.645589,0.00021917,2]
[374480127,1753317054404,-480.0,0.00021917,2]
[374480128,1753317054413,-1463.645589,0.00021917,2]
[374480129,1753317054426,-400.0,0.00021917,2]
[374480130,1753317054436,-1463.645589,0.00021917,2]
[374480131,1753317054445,-874.43,0.00021917,2]
[374480132,1753317054455,-1463.645589,0.00021917,2]
[374480133,1753317054465,-1463.645589,0.00021917,2]
[374480134,1753317054475,-400.0,0.00021917,2]
[374480135,1753317054484,-433.95,0.00021917,2]
[374480136,1753317054494,-1463.645589,0.00021917,2]
[374480137,1753317054504,-1463.645589,0.00021917,2]
[374480138,1753317054514,-1463.645589,0.00021917,2]
[374480139,1753317054524,-1463.645589,0.00021917,2]
[374480140,1753317054534,-400.0,0.00021917,2]
[374480141,1753317054545,-400.0,0.00021917,2]
[374480142,1753317054555,-400.0,0.00021917,2]
[374480143,1753317054564,-1463.645589,0.00021917,2]
[374480144,1753317054573,-684.8,0.00021917,2]
[374480145,1753317054584,-1463.645589,0.00021917,2]
[374480146,1753317054594,-1014.69,0.00021917,2]
[374480147,1753317054604,-1463.645593,0.00021917,2]
[374480148,1753317054614,-400.0,0.00021917,2]
[374480149,1753317054623,-400.0,0.00021917,2]
[374480150,1753317054633,-442.14094043,0.00021917,2]
[374480151,1753317054644,-317.26813722,0.00021917,2]
[374480152,1753317054653,-643.79,0.00021917,2]
[374480153,1753317054663,-380.0,0.00021917,2]
[374480154,1753317054672,-610.07,0.00021917,2]
[374480155,1753317054682,-400.0,0.00021917,2]
[374480156,1753317054692,-400.0,0.00021917,2]
[374480157,1753317054701,-495.66,0.00021917,2]
[374480158,1753317054711,-400.0,0.00021917,2]
[374480159,1753317054720,-692.61,0.00021917,2]
[374480160,1753317054730,-563.33,0.00021917,2]
[374480161,1753317054739,-480.0,0.00021917,2]
[374480162,1753317054749,-400.0,0.00021917,2]
[374480163,1753317054758,-400.0,0.00021917,2]
[374480164,1753317054768,-400.0,0.00021917,2]
[374480165,1753317054777,-400.0,0.00021917,2]
[374480166,1753317054786,-254.67674035,0.00021917,2]
[374480167,1753317054796,-1376.89,0.00021917,2]
[374480168,1753317054805,-400.0,0.00021917,2]
[374480169,1753317054815,-440.0,0.00021917,2]
[374480170,1753317054824,-547.82,0.00021917,2]
[374480171,1753317054834,-155.32322763,0.00021917,2]
[374480172,1753317054843,-787.43,0.00021917,2]
[374480173,1753317054852,-490.0,0.00021917,2]
[374480174,1753317054862,-500.0,0.00021917,2]
[374480175,1753317054871,-400.0,0.00021917,2]
[374480176,1753317054880,-400.0,0.00021917,2]
[374480177,1753317054891,-400.0,0.00021917,2]
[374480178,1753317054900,-400.0,0.00021917,2]
[374480179,1753317054910,-400.0,0.00021917,2]
[374480180,1753317054919,-400.0,0.00021917,2]
[374480181,1753317054928,-400.0,0.00021917,2]
[374480182,1753317054938,-560.51,0.00021917,2]
[374480183,1753317054947,-400.0,0.00021917,2]
[374480184,1753317054957,-500.48,0.00021917,2]
[374480185,1753317054966,-400.0,0.00021917,2]
[374480186,1753317054976,-636.7,0.00021917,2]
[374480187,1753317054985,-400.0,0.00021917,2]
[374480188,1753317054995,-400.0,0.00021917,2]
[374480189,1753317055005,-460.0,0.00021917,2]
[374480190,1753317055014,-493.03,0.00021917,2]
[374480191,1753317055023,-446.32,0.00021917,2]
[374480192,1753317055033,-400.0,0.00021917,2]
[374480193,1753317055043,-858.11,0.00021917,2]
[374480194,1753317055052,-236.89776216,0.00021917,2]
[374480195,1753317055062,-151.0,0.00021917,2]
[374480196,1753317055072,-400.0,0.00021917,2]
[374480197,1753317055081,-151.0,0.00021917,2]
[374480198,1753317055091,-151.992021,0.00021917,2]
[374480199,1753317055100,-500.0,0.00021917,2]
[374480200,1753317055110,-400.0,0.00021917,2]
[374480201,1753317055120,-414.75,0.00021917,2]
[374480202,1753317055130,-480.0,0.00021917,2]
[374480203,1753317055141,-400.0,0.00021917,2]
[374480204,1753317055150,-480.0,0.00021917,2]
[374480205,1753317055160,-400.0,0.00021917,2]
[374480206,1753317055169,-400.0,0.00021917,2]
[374480207,1753317055179,-400.0,0.00021917,2]
[374480208,1753317055189,-400.0,0.00021917,2]
[374480209,1753317055198,-440.0,0.00021917,2]
[374480210,1753317055208,-489.48,0.00021917,2]
[374480211,1753317055217,-400.0,0.00021917,2]
[374480212,1753317055227,-654.06,0.00021917,2]
[374480213,1753317055236,-460.0,0.00021917,2]
[374480214,1753317055246,-460.0,0.00021917,2]
[374480215,1753317055256,-400.0,0.00021917,2]
[374480216,1753317055266,-2934.91,0.00021917,2]
[374480217,1753317055275,-400.0,0.00021917,2]
[374480218,1753317055285,-400.0,0.00021917,2]
[374480219,1753317055294,-400.0,0.00021917,2]
[374480220,1753317055395,-504.1093554,0.00021917,2]
[374480221,1753317055404,-918.7,0.00021917,2]
[374480222,1753317055414,-2326.26,0.00021917,2]
[374480223,1753317055427,-400.0,0.00021917,2]
[374480224,1753317055438,-400.0,0.00021917,2]
[374480225,1753317055449,-400.0,0.00021917,2]
[374480226,1753317055460,-400.0,0.00021917,2]